bitfinex-derivatives/quotes_SOLF0:USTF0_20260213
["timestamp","ask_amount","ask_price","bid_price","bid_amount"]
[1770947168849,121.64,78.766,78.684,271.01262589]
[1770947168850,43.61575879,78.745,78.686,9.743349]
[1770947169046,43.61575879,78.745,78.687,9.743349]
[1770947169251,43.61575879,78.745,78.695,11.4461]
[1770947169454,43.61575879,78.739,78.659,11.54816496]
[1770947169754,43.61575879,78.739,78.66,9.74514093]
[1770947169956,43.61575879,78.739,78.661,9.74514093]
[1770947170150,43.61575879,78.739,78.662,9.74514093]
[1770947170351,43.61640025,78.737,78.677,11.4487]
[1770947170553,43.61640025,78.737,78.678,9.74514093]
[1770947170754,43.61640025,78.737,78.652,101.4]
[1770947170953,43.61640025,78.737,78.653,9.74947062]
[1770947171257,43.61640025,78.737,78.654,9.74947062]
[1770947171457,43.61640025,78.737,78.655,9.74947062]
[1770947171658,43.61640025,78.737,78.656,9.74947062]
[1770947171961,43.61826537,78.726,78.665,11.4506]
[1770947172154,43.61826537,78.726,78.666,9.74947062]
[1770947172346,43.61826537,78.719,78.666,9.74947062]
[1770947172550,43.61826537,78.719,78.656,11.4518]
[1770947172755,43.61826537,78.719,78.657,9.75818239]
[1770947172954,43.61826537,78.719,78.63,8.85568012]
[1770947173149,43.6288081,78.691,78.638,11.4544]
[1770947173456,43.6288081,78.691,78.613,101.4]
[1770947173657,43.6288081,78.689,78.629,11.4558]
[1770947173857,43.6288081,78.689,78.604,11.54816496]
[1770947173858,43.62945663,78.679,78.601,11.54816496]
[1770947174154,43.62945663,78.677,78.602,11.54816496]
[1770947174355,43.62945663,78.674,78.608,11.4589]
[1770947174560,43.62945663,78.672,78.609,9.77272272]
[1770947174854,43.62945663,78.672,78.586,101.42]
[1770947174855,8.85568012,78.72,78.63,8.85568012]
[1770947175053,8.85568012,78.74,78.65,8.85568012]
[1770947175257,8.85568012,78.74,78.651,9.77272272]
[1770947175460,11.4401,78.738,78.663,11.4508]
[1770947175658,11.4401,78.738,78.664,9.77272272]
[1770947175858,11.4401,78.738,78.665,9.77272272]
[1770947176159,11.4401,78.738,78.666,9.77272272]
[1770947176354,11.4401,78.738,78.667,9.77272272]
[1770947176554,11.4411,78.731,78.668,9.77272272]
[1770947176754,33.04604427,78.73,78.669,9.77272272]
[1770947177055,33.04604427,78.727,78.67,9.77272272]
[1770947177261,33.04604427,78.727,78.671,9.77272272]
[1770947177460,33.04604427,78.727,78.672,9.77272272]
[1770947177659,33.04604427,78.727,78.673,9.77272272]
[1770947177848,33.04604427,78.727,78.674,9.77272272]
[1770947178054,33.04604427,78.727,78.675,9.77272272]
[1770947178361,33.04604427,78.727,78.676,9.77272272]
[1770947178555,33.04604427,78.727,78.677,9.77272272]
[1770947178755,33.04604427,78.727,78.678,9.77272272]
[1770947178955,33.04604427,78.727,78.679,9.77272272]
[1770947179155,33.04604427,78.727,78.68,9.77272272]
[1770947179353,11.44,78.739,78.67,11.54816496]
[1770947179354,2.20986757,78.816,78.681,9.77272272]
[1770947179663,33.04083699,78.78,78.71,8.85568012]
[1770947179853,41.89651711,78.78,78.711,9.77272272]
[1770947180049,33.04275675,78.778,78.683,11.54816496]
[1770947180251,33.04275675,78.776,78.684,9.75839831]
[1770947180458,33.04275675,78.759,78.685,21.20599831]
[1770947180761,33.04275675,78.759,78.686,9.75839831]
[1770947180962,33.05423094,78.756,78.687,9.75839831]
[1770947181163,33.05423094,78.756,78.694,11.54816496]
[1770947181459,33.05423094,78.756,78.695,9.75839831]
[1770947181665,33.05423094,78.756,78.709,11.4441]
[1770947181848,33.05614801,78.778,78.71,9.75839831]
[1770947182054,33.05614801,78.778,78.711,9.75839831]
[1770947182253,33.05614801,78.778,78.712,9.75839831]
[1770947182458,33.05614801,78.778,78.713,9.75839831]
[1770947182656,33.05614801,78.778,78.714,9.75839831]
[1770947182853,33.05614801,78.778,78.715,9.75839831]
[1770947183056,33.01247025,78.776,78.716,9.75839831]
[1770947183257,33.01247025,78.776,78.717,9.75839831]
[1770947183457,33.01247025,78.776,78.718,9.76182368]
[1770947183658,33.01247025,78.772,78.719,9.76182368]
[1770947183866,33.01247025,78.772,78.72,9.76182368]
[1770947184057,33.01247025,78.772,78.721,9.76182368]
[1770947184262,33.01247025,78.772,78.722,9.76182368]
[1770947184463,33.01247025,78.772,78.723,9.76182368]
[1770947184765,33.01247025,78.772,78.71,11.4439]
[1770947185063,33.01605635,78.768,78.711,9.76454539]
[1770947185261,33.01605635,78.768,78.69,8.85568012]
[1770947185262,33.01605635,78.768,78.712,9.76454539]
[1770947185460,33.01605635,78.768,78.713,9.76454539]
[1770947185660,33.01605635,78.768,78.698,11.54816496]
[1770947185661,33.01605635,78.768,78.714,9.76454539]
[1770947185861,33.01605635,78.768,78.715,9.76454539]
[1770947186061,33.01605635,78.768,78.716,9.76454539]
[1770947186263,33.01605635,78.768,78.717,9.76454539]
[1770947186458,33.01605635,78.768,78.718,9.76454539]
[1770947186664,33.01605635,78.768,78.719,9.76454539]
[1770947186857,33.01605635,78.768,78.72,9.76454539]
[1770947187062,33.01605635,78.768,78.721,9.76454539]
[1770947187268,33.01605635,78.768,78.722,9.76454539]
[1770947187468,33.01605635,78.768,78.723,9.76454539]
[1770947187668,33.01605635,78.768,78.724,9.76454539]
[1770947187970,33.01605635,78.768,78.725,9.76454539]
[1770947188172,33.01605635,78.768,78.726,9.76454539]
[1770947188370,33.01605635,78.768,78.711,11.54816496]
[1770947188371,33.01605635,78.768,78.727,9.76454539]
[1770947188572,33.01605635,78.768,78.728,9.76454539]
[1770947188768,33.01605635,78.768,78.729,9.76454539]
[1770947189075,33.01605635,78.768,78.73,9.76454539]
[1770947189277,33.01605635,78.768,78.731,9.76454539]
[1770947189566,32.96989559,78.766,78.732,9.76454539]
[1770947189764,32.96989559,78.764,78.713,11.54816496]
[1770947190166,32.9712488,78.763,78.714,21.33554563]
[1770947190473,32.9712488,78.763,78.72,11.54816496]
[1770947190675,32.9712488,78.778,78.735,11.54816496]
[1770947190872,32.9712488,78.778,78.739,11.54816496]
[1770947191071,2.5762079,78.781,78.74,9.78738067]
[1770947191272,2.5762079,78.781,78.743,11.54816496]
[1770947191572,2.5762079,78.781,78.744,9.78738067]
[1770947191778,2.5762079,78.781,78.745,9.78738067]
[1770947191971,7.9e-06,78.781,78.75,11.54816496]
[1770947192275,12.45082967,78.861,78.75,11.54816496]
[1770947192276,32.97304807,78.847,78.774,11.54816496]
[1770947192572,32.97304807,78.84,78.776,11.54816496]
[1770947192781,123.84,78.839,78.777,9.78738067]
[1770947192972,32.95314111,78.838,78.778,9.78738067]
[1770947193173,123.92,78.837,78.779,9.78738067]
[1770947193471,32.95314111,78.836,78.785,11.4331]
[1770947193673,32.95314111,78.836,78.786,9.78738067]
[1770947193977,32.95314111,78.836,78.787,9.78738067]
[1770947194176,32.95314111,78.836,78.788,9.78738067]
[1770947194372,32.95314111,78.836,78.789,9.78738067]
[1770947194581,32.95314111,78.836,78.79,9.78738067]
[1770947194782,32.95314111,78.836,78.791,9.78738067]
[1770947194965,32.95314111,78.836,78.792,9.78738067]
[1770947195171,32.95314111,78.836,78.793,9.78738067]
[1770947195478,33.0731953,78.833,78.775,11.4345]
[1770947196974,33.0731953,78.833,78.783,11.4334]
[1770947197176,33.0731953,78.833,78.77,8.85568012]
[1770947197476,22.835,78.894,78.73,69.94778012]
[1770947197477,33.07995161,78.831,78.75,8.85568012]
[1770947197678,33.07995161,78.829,78.75,8.85568012]
[1770947198366,8.85568012,78.84,78.74,8.85568012]
[1770947198367,33.08148646,78.823,78.74,8.85568012]
[1770947199779,33.12881201,78.813,78.754,11.4376]
[1770947199976,33.12881201,78.811,78.754,11.4376]
[1770947201076,33.12881201,78.811,78.72,8.85568012]
[1770947202078,33.11513884,78.809,78.72,8.85568012]
[1770947202278,33.11513884,78.809,78.723,12.78920772]
[1770947202579,33.11513884,78.807,78.723,12.78920772]
[1770947203382,33.10017759,78.805,78.723,12.78920772]
[1770947203779,33.10017759,78.805,78.746,11.4388]
[1770947204383,33.10164707,78.802,78.746,11.4388]
[1770947205578,33.17931158,78.796,78.734,11.4405]
[1770947205884,33.17931158,78.796,78.72,8.85568012]
[1770947205885,33.17931158,78.796,78.722,101.34]
[1770947206271,33.18097477,78.795,78.724,101.34]
[1770947206484,33.18097477,78.793,78.724,101.34]
[1770947206682,11.4336,78.783,78.724,112.782]
[1770947206878,33.18097477,78.782,78.724,11.442]
[1770947207077,33.17257953,78.78,78.708,101.34]
[1770947208881,33.19007772,78.773,78.715,11.4433]
[1770947209076,22.8556,78.822,78.7,8.850384]
[1770947209077,33.19007772,78.771,78.7,8.850384]
[1770947209276,33.19007772,78.769,78.7,8.850384]
[1770947209778,33.19007772,78.769,78.722,11.4422]
[1770947210874,8.850384,78.79,78.7,8.850384]
[1770947210875,101.34,78.782,78.7,8.850384]
[1770947211076,33.18827845,78.783,78.72,8.850384]
[1770947211382,33.18827845,78.806,78.721,101.34]
[1770947212483,33.18827845,78.806,78.74,8.850384]
[1770947212684,33.18827845,78.806,78.758,11.4369]
[1770947213679,33.18827845,78.806,78.741,101.36]
[1770947213883,33.18827845,78.806,78.703,15.39885997]
[1770947213884,33.18827845,78.806,78.72,8.850384]
[1770947214284,33.0349811,78.804,78.721,101.34]
[1770947214981,33.03110818,78.795,78.745,11.4389]
[1770947216482,33.03216456,78.811,78.758,11.4371]
[1770947216781,33.03216456,78.811,78.74,8.850384]
[1770947217892,33.03216456,78.811,78.761,11.4366]
[1770947219791,33.03216456,78.811,78.752,11.4378]
[1770947220089,33.03216456,78.811,78.744,101.34]
[1770947220393,33.05411236,78.781,78.727,11.4415]
[1770947220988,33.04462364,78.779,78.716,11.4431]
[1770947222085,33.04560962,78.759,78.706,11.4446]
[1770947222292,33.04560962,78.799,78.72,8.850384]
[1770947222483,33.04560962,78.799,78.722,11.56975572]
[1770947222685,33.04560962,78.799,78.74,8.850384]
[1770947223588,32.99885662,78.791,78.715,11.56975572]
[1770947223794,32.99885662,78.789,78.71,8.850384]
[1770947223995,32.99971155,78.787,78.71,8.850384]
[1770947224890,32.99564559,78.78,78.724,11.4419]
[1770947225393,11.77511855,78.819,78.69,101.34]
[1770947225394,32.99564559,78.769,78.701,11.56975572]
[1770947225593,32.99564559,78.769,78.695,11.56975572]
[1770947226292,32.99564559,78.769,78.696,11.56975572]
[1770947226494,32.99647017,78.767,78.696,11.56975572]
[1770947226894,32.97821265,78.762,78.706,11.4446]
[1770947227091,32.97821265,78.762,78.7,11.56975572]
[1770947227292,32.97821265,78.762,78.69,24.27672496]
[1770947227293,32.97821265,78.762,78.708,11.56975572]
[1770947227489,32.97821265,78.762,78.703,11.56975572]
[1770947227690,32.97821265,78.762,78.693,11.56975572]
[1770947228290,32.97821265,78.762,78.692,11.56975572]
[1770947229297,32.97821265,78.762,78.691,11.56975572]
[1770947229496,32.98312933,78.761,78.711,11.4438]
[1770947231391,11.4351,78.772,78.718,11.4428]
[1770947231598,101.36,78.771,78.718,11.4428]
[1770947232004,127.22,78.77,78.7,11.56975572]
[1770947232205,32.98830586,78.769,78.695,11.56975572]
[1770947232795,32.98830586,78.769,78.724,11.4419]
[1770947233099,32.98830586,78.769,78.695,11.56975572]
[1770947233698,32.98830586,78.769,78.716,11.4432]
[1770947234405,32.98976703,78.767,78.723,11.442]
[1770947234800,32.98976703,78.767,78.694,112.92975572]
[1770947235304,32.98976703,78.767,78.695,11.56975572]
[1770947235697,32.98976703,78.767,78.714,11.4434]
[1770947236700,177.7566,78.827,78.705,11.4447]
[1770947236701,32.98441806,78.764,78.705,11.4447]
[1770947236903,32.99385705,78.762,78.68,11.56975572]
[1770947237108,32.99385705,78.744,78.684,11.4477]
[1770947237404,32.99385705,78.744,78.671,11.56975572]
[1770947237905,32.99385705,78.744,78.703,11.4451]
[1770947238507,11.4365,78.762,78.71,11.4439]
[1770947238803,32.99455797,78.766,78.67,8.850384]
[1770947238804,128.18,78.76,78.69,20.42013972]
[1770947239004,32.99455797,78.766,78.695,11.56975572]
[1770947239201,32.99455797,78.766,78.696,11.56975572]
[1770947240208,32.99455797,78.766,78.694,11.56975572]
[1770947240507,33.13879422,78.763,78.71,11.444]
[1770947240802,33.13879422,78.762,78.71,11.444]
[1770947241312,33.06957439,78.76,78.71,11.444]
[1770947242006,33.06957439,78.76,78.717,11.4429]
[1770947243507,129.02,78.759,78.717,11.4429]
[1770947245114,162.12711523,78.759,78.717,11.4429]
[1770947246706,33.10793927,78.776,78.703,11.56975572]
[1770947246916,101.38,78.775,78.71,8.850384]
[1770947247118,134.48582316,78.775,78.716,11.56975572]
[1770947247322,33.10582316,78.774,78.716,11.56975572]
[1770947247614,33.10582316,78.774,78.71,8.850384]
[1770947247818,33.10582316,78.774,78.733,11.4406]
[1770947248213,33.10661987,78.79,78.73,11.63706039]
[1770947248418,33.10661987,78.79,78.737,11.63706039]
[1770947248604,33.10661987,78.79,78.736,11.63706039]
[1770947249810,33.10661987,78.79,78.754,11.4376]
[1770947250313,33.10661987,78.79,78.736,11.63706039]
[1770947250509,33.12544418,78.81,78.736,11.63706039]
[1770947250815,8.850384,78.83,78.724,11.63706039]
[1770947250816,33.12544418,78.808,78.724,11.63706039]
[1770947251013,33.13264156,78.806,78.721,11.63706039]
[1770947251314,33.13264156,78.804,78.721,11.63706039]
[1770947251810,33.1334355,78.797,78.746,11.4387]
[1770947252320,33.1334355,78.795,78.721,11.63706039]
[1770947252615,33.1334355,78.793,78.722,11.63706039]
[1770947252806,33.1334355,78.793,78.721,11.63706039]
[1770947253716,33.1334355,78.793,78.745,11.4389]
[1770947254712,33.12407942,78.791,78.745,11.4389]
[1770947255026,33.11344703,78.789,78.745,11.4389]
[1770947255512,33.11344703,78.789,78.72,8.850384]
[1770947255513,33.11344703,78.789,78.737,11.44]
[1770947256912,33.11809201,78.787,78.737,11.44]
[1770947257317,33.11809201,78.785,78.726,11.4417]
[1770947257513,33.11809201,78.785,78.702,11.63706039]
[1770947257709,33.11809201,78.783,78.7,8.850384]
[1770947258320,33.11809201,78.783,78.704,11.63706039]
[1770947258821,33.11879192,78.77,78.718,11.4429]
[1770947259414,33.12320842,78.768,78.718,11.4429]
[1770947259819,33.12320842,78.766,78.718,11.4429]
[1770947260428,33.123898,78.76,78.69,8.850384]
[1770947260718,33.123898,78.758,78.69,8.850384]
[1770947260914,33.123898,78.758,78.707,11.4444]
[1770947261113,33.123898,78.758,78.69,8.850384]
[1770947261523,33.123898,78.758,78.701,11.65567315]
[1770947261726,33.123898,78.758,78.714,11.4434]
[1770947264124,33.123898,78.758,78.69,8.850384]
[1770947264125,33.123898,78.758,78.721,11.4424]
[1770947270835,32.54834411,78.78,78.728,11.4413]
[1770947271037,32.54834411,78.778,78.728,11.4413]
[1770947271238,32.54834411,78.778,78.727,11.65567315]
[1770947271739,32.54834411,78.809,78.741,11.65567315]
[1770947271939,8.85077671,78.81,78.72,32.16212301]
[1770947271940,32.54824952,78.807,78.742,11.65567315]
[1770947272235,32.54824952,78.807,78.741,11.65567315]
[1770947272440,32.54824952,78.805,78.741,11.65567315]
[1770947272839,32.54824952,78.797,78.751,11.4381]
[1770947273338,32.57111866,78.795,78.751,11.4381]
[1770947273540,32.57111866,78.793,78.744,11.4391]
[1770947276537,32.58403829,78.788,78.74,11.65567315]
[1770947276743,32.58403829,78.786,78.726,11.65567315]
[1770947276940,32.58345546,78.784,78.72,11.65567315]
[1770947277138,32.58345546,78.768,78.724,11.442]
[1770947280638,32.58345546,78.768,78.72,11.65567315]
[1770947280840,32.58345546,78.768,78.708,11.65567315]
[1770947281140,32.58345546,78.768,78.703,11.65567315]
[1770947281338,32.55130206,78.749,78.703,11.65567315]
[1770947281533,32.55130206,78.747,78.694,11.65567315]
[1770947281944,32.55122255,78.745,78.691,11.65567315]
[1770947282145,32.55122255,78.745,78.692,11.65567315]
[1770947282335,32.55122255,78.745,78.691,11.65567315]
[1770947282533,32.55122255,78.745,78.692,11.4467]
[1770947283138,32.55122255,78.745,78.68,15.54089753]
[1770947283139,32.54266898,78.744,78.706,11.65567315]
[1770947283342,32.54266898,78.744,78.7,11.65567315]
[1770947284740,32.54266898,78.744,78.699,23.10117315]
[1770947286041,32.54266898,78.744,78.699,11.4455]
[1770947286641,32.55256394,78.742,78.699,11.4455]
[1770947286834,32.55227147,78.756,78.707,11.4444]
[1770947287039,32.55227147,78.754,78.707,11.4444]
[1770947288446,32.55219833,78.752,78.707,11.4444]
[1770947289146,32.55111158,78.75,78.698,11.65567315]
[1770947289343,32.55111158,78.75,78.677,23.3113463]
[1770947289344,32.55111158,78.749,78.689,11.65567315]
[1770947289541,32.55111158,78.747,78.689,11.65567315]
[1770947289947,32.55111158,78.747,78.688,11.65567315]
[1770947290447,101.38,78.746,78.698,11.65567315]
[1770947290641,101.38,78.746,78.697,11.65567315]
[1770947290949,32.54737882,78.744,78.697,11.65567315]
[1770947291148,32.54737882,78.743,78.697,11.68432416]
[1770947291851,32.54737882,78.743,78.7,11.4454]
[1770947292142,32.54737882,78.743,78.697,11.68432416]
[1770947292343,32.54737882,78.743,78.68,8.85077671]
[1770947292649,32.54737882,78.743,78.698,11.4457]
[1770947293343,136.92,78.756,78.708,11.4442]
[1770947293742,137.02,78.756,78.708,11.4442]
[1770947294447,169.58145204,78.756,78.708,11.4442]
[1770947294752,169.58145204,78.756,78.708,23.12855331]
[1770947295250,32.57526012,78.772,78.719,11.4427]
[1770947295438,32.57526012,78.77,78.719,11.4427]
[1770947296947,32.57526012,78.77,78.69,8.85077671]
[1770947296948,32.57749296,78.768,78.705,11.68435331]
[1770947297148,32.57749296,78.766,78.701,11.68435331]
[1770947297453,32.57749296,78.764,78.72,11.4425]
[1770947297753,32.57749296,78.762,78.72,11.4425]
[1770947300742,32.57749296,78.762,78.727,11.4415]
[1770947302149,3.30425206,78.77,78.727,11.4415]
[1770947302351,101.38,78.772,78.727,23.12585331]
[1770947302555,32.57025677,78.771,78.727,23.12585331]
[1770947302752,32.57025677,78.771,78.727,11.4415]
[1770947303255,32.57897079,78.77,78.727,11.4415]
[1770947303443,3.30425206,78.78,78.731,11.441]
[1770947303648,32.57897079,78.778,78.731,23.12535331]
[1770947303849,32.57893237,78.813,78.731,11.68435331]
[1770947304055,32.57893237,78.789,78.745,11.4389]
[1770947304250,32.57893237,78.787,78.745,11.4389]
[1770947304847,32.57893237,78.787,78.737,11.68435331]
[1770947305248,32.57893237,78.787,78.736,11.4402]
[1770947305249,32.57893237,78.787,78.74,3.30425206]
[1770947305554,32.57893237,78.787,78.703,22.8901]
[1770947305555,26.73076525,78.769,78.713,15.57913774]
[1770947305749,26.73076525,78.769,78.72,3.30425206]
[1770947306754,26.73076525,78.769,78.729,11.4412]
[1770947307454,26.77627215,78.759,78.71,3.30425206]
[1770947307657,26.77627215,78.757,78.7,3.30425206]
[1770947308756,26.77627215,78.757,78.711,11.4438]
[1770947308953,26.77627215,78.757,78.699,15.57913774]
[1770947309152,26.96843319,78.755,78.688,15.57913774]
[1770947309357,26.96843319,78.753,78.689,15.57913774]
[1770947309553,26.96843319,78.753,78.688,15.57913774]
[1770947310555,26.9686892,78.751,78.688,15.57913774]
[1770947310862,26.9686892,78.751,78.703,11.445]
[1770947312761,26.9686892,78.751,78.695,11.4462]
[1770947312964,26.97115483,78.747,78.688,15.57913774]
[1770947313257,26.97115483,78.747,78.68,8.85369282]
[1770947313464,26.97115483,78.745,78.68,8.85369282]
[1770947313651,26.97115483,78.743,78.68,8.85369282]
[1770947314162,26.97115483,78.743,78.698,11.4457]
[1770947321366,26.95784183,78.757,78.705,11.4447]
[1770947321573,128.33784183,78.756,78.705,11.4447]
[1770947321772,26.95804152,78.755,78.705,11.4447]
[1770947322180,26.95804152,78.755,78.702,15.57913774]
[1770947322381,26.95804152,78.755,78.707,15.57913774]
[1770947323783,26.95804152,78.755,78.721,11.4423]
[1770947325083,26.95804152,78.755,78.698,15.57913774]
[1770947325273,23.6799628,78.813,78.691,15.57913774]
[1770947325274,26.96206219,78.753,78.691,15.57913774]
[1770947325471,8.85369282,78.76,78.686,15.57913774]
[1770947325472,26.96206219,78.751,78.686,15.57913774]
[1770947325985,26.96225701,78.749,78.697,11.4459]
[1770947326287,26.96225701,78.749,78.682,15.57913774]
[1770947327584,26.96225701,78.749,78.681,15.57913774]
[1770947327783,26.96891471,78.743,78.688,11.4472]
[1770947328178,26.96891471,78.743,78.681,15.57913774]
[1770947328384,26.96911326,78.741,78.681,15.57913774]
[1770947328680,26.96911326,78.741,78.695,11.4462]
[1770947328882,26.96911326,78.741,78.681,15.57913774]
[1770947329787,26.96911326,78.741,78.687,11.4473]
[1770947330889,26.97803122,78.739,78.691,11.4467]
[1770947335379,3.3069447,78.73,78.691,11.4467]
[1770947335580,26.94171588,78.729,78.691,11.4467]
[1770947335776,3.3069447,78.72,78.68,15.57913774]
[1770947335982,26.94186795,78.719,78.678,11.4486]
[1770947336590,26.94186795,78.719,78.685,11.4476]
[1770947337983,26.94186795,78.719,78.678,11.4487]
[1770947338688,26.94186795,78.719,78.68,3.3069447]
[1770947339692,26.94186795,78.719,78.678,11.4487]
[1770947340090,26.94186795,78.719,78.681,11.4482]
[1770947343388,26.94186795,78.719,78.688,11.4472]
[1770947343694,26.91233397,78.731,78.68,3.3069447]
[1770947344494,112.8395,78.742,78.68,3.3069447]
[1770947344495,26.91244401,78.729,78.68,3.3069447]
[1770947345795,26.91244401,78.729,78.686,11.4475]
[1770947346904,26.77216723,78.719,78.677,11.4488]
[1770947348291,26.77216723,78.719,78.667,11.4503]
[1770947349605,26.75606604,78.709,78.667,11.4503]
[1770947351902,26.75606604,78.709,78.658,484.09640514]
[1770947352110,26.74353582,78.699,78.658,484.09640514]
[1770947352306,26.74353582,78.699,78.647,282.25301837]
[1770947353005,3.3069447,78.69,78.647,270.79991837]
[1770947353201,26.74239443,78.689,78.647,270.79991837]
[1770947355208,26.75917925,78.702,78.65,3.3069447]
[1770947355407,26.75917925,78.702,78.66,3.3069447]
[1770947355708,26.75917925,78.702,78.65,3.3069447]
[1770947356010,26.75915929,78.699,78.65,3.3069447]
[1770947356804,26.75915929,78.699,78.654,11.4521]
[1770947357708,26.75915929,78.699,78.661,11.4511]
[1770947359600,26.75915929,78.699,78.647,270.79991837]
[1770947359805,21.03418073,78.689,78.647,270.79991837]
[1770947360805,21.03418073,78.689,78.648,11.4531]
[1770947362614,21.03425611,78.688,78.648,11.4531]
[1770947363507,20.98762383,78.686,78.648,11.4531]
[1770947365013,20.98762383,78.686,78.65,3.3069447]
[1770947365409,20.98762383,78.686,78.64,3.3069447]
[1770947365715,20.98762383,78.686,78.63,3.3069447]
[1770947365916,20.98762383,78.686,78.638,11.4545]
[1770947366310,20.98762383,78.686,78.64,3.3069447]
[1770947366712,20.98762383,78.686,78.641,11.4541]
[1770947370718,20.98762383,78.686,78.65,3.3069447]
[1770947373320,20.98762383,78.686,78.641,11.4541]
[1770947375020,20.98762383,78.686,78.65,3.3069447]
[1770947376427,20.98762383,78.686,78.651,11.4526]
[1770947377824,20.98762383,78.686,78.65,3.3069447]
[1770947379627,20.98762383,78.686,78.644,11.4536]
[1770947379927,20.98762383,78.686,78.65,3.3069447]
[1770947381324,20.98762383,78.686,78.653,11.4523]
[1770947383223,20.98762383,78.686,78.662,11.451]
[1770947383733,20.98762383,78.686,78.65,3.3069447]
[1770947384728,20.98762383,78.686,78.655,11.452]
[1770947388728,20.98762383,78.686,78.651,11.6636244]
[1770947389121,20.98762383,78.686,78.652,11.6636244]
[1770947389830,20.98762383,78.686,78.653,11.6636244]
[1770947390131,20.98762383,78.686,78.654,11.6636244]
[1770947391131,20.98762383,78.686,78.655,11.6636244]
[1770947392128,20.98762383,78.686,78.657,11.6636244]
[1770947392934,20.98762383,78.686,78.65,3.31012242]
[1770947392935,20.98575846,78.697,78.66,14.97374682]
[1770947393235,20.98575846,78.697,78.662,11.6636244]
[1770947393932,20.98575846,78.697,78.668,11.6636244]
[1770947394133,20.99924543,78.711,78.67,3.31012242]
[1770947394335,20.99924543,78.711,78.67,14.97374682]
[1770947395732,20.99924543,78.711,78.673,11.4494]
[1770947397424,20.99924543,78.711,78.67,14.97374682]
[1770947397425,20.99924543,78.711,78.679,11.4485]
[1770947400232,20.99924543,78.711,78.681,11.4482]
[1770947400732,20.99924543,78.711,78.68,3.31012242]
[1770947400733,20.99924543,78.711,78.689,11.447]
[1770947401035,20.99575565,78.722,78.689,11.447]
[1770947402231,20.99575565,78.722,78.682,11.4481]
[1770947402834,20.99575565,78.722,78.689,11.4471]
[1770947403038,20.97806862,78.749,78.7,3.31012242]
[1770947403341,20.97806862,78.749,78.705,11.4447]
[1770947403538,20.97806862,78.739,78.705,11.4447]
[1770947405236,20.9668311,78.764,78.72,3.31012242]
[1770947405540,20.9668311,78.764,78.73,3.31012242]
[1770947406833,20.99399758,78.78,78.74,3.31012242]
[1770947408040,20.99395178,78.769,78.717,23.1066244]
[1770947408235,20.99395178,78.769,78.72,3.31012242]
[1770947409240,20.99395178,78.769,78.693,101.42]
[1770947409241,20.99395178,78.769,78.712,11.4436]
[1770947409441,20.99395178,78.769,78.71,3.31012242]
[1770947409442,20.97489832,78.759,78.71,3.31012242]
[1770947409641,20.97489832,78.749,78.7,3.31012242]
[1770947409837,20.97489832,78.749,78.704,11.4449]
[1770947410033,20.97489832,78.749,78.69,3.31012242]
[1770947410248,20.97484005,78.739,78.69,3.31012242]
[1770947411336,20.97484005,78.739,78.696,11.4461]
[1770947411849,20.97484005,78.739,78.7,3.31012242]
[1770947412951,20.97484005,78.739,78.69,3.31012242]
[1770947414546,20.88591148,78.729,78.68,3.31012242]
[1770947414755,20.88591148,78.729,78.675,11.4491]
[1770947418256,20.88591148,78.729,78.69,3.31012242]
[1770947419555,20.89663976,78.742,78.7,3.31012242]
[1770947420955,20.89663976,78.742,78.7,3.31012242]
[1770947421361,20.90059089,78.739,78.69,3.31012242]
[1770947421858,20.90059089,78.739,78.686,11.4475]
[1770947423850,20.89404703,78.729,78.675,11.449]
[1770947424960,20.89084713,78.719,78.675,11.449]
[1770947425263,20.89084713,78.709,78.666,11.4504]
[1770947426464,20.89084713,78.709,78.674,11.4492]
[1770947427355,20.89084713,78.709,78.67,3.31012242]
[1770947428767,20.89084713,78.709,78.671,11.4496]
[1770947432968,20.89084713,78.709,78.662,11.6636244]
[1770947433175,20.89084713,78.709,78.67,3.31012242]
[1770947434770,20.89084713,78.709,78.671,11.4496]
[1770947438384,20.89084713,78.709,78.68,3.31012242]
[1770947438980,20.89084713,78.709,78.681,11.4483]
[1770947439179,20.89084713,78.709,78.671,11.6636244]
[1770947440885,20.89084713,78.709,78.674,11.4493]
[1770947441088,20.89084713,78.709,78.68,3.31012242]
[1770947441587,20.82115153,78.729,78.68,3.31012242]
[1770947442484,20.82115153,78.729,78.69,11.4469]
[1770947442690,20.82115153,78.729,78.69,14.75702242]
[1770947443284,20.82115153,78.729,78.69,11.4469]
[1770947443588,20.82115153,78.729,78.69,14.75702242]
[1770947443988,20.82115153,78.729,78.685,11.6636244]
[1770947444191,20.82115153,78.729,78.683,11.448]
[1770947444385,20.82115153,78.729,78.69,3.31012242]
[1770947444586,20.82115153,78.729,78.697,11.4459]
[1770947450198,20.82115153,78.729,78.69,3.31012242]